bitfinex/quotes_BTCUSD_20230906
["timestamp","ask_amount","ask_price","bid_price","bid_amount"]
[1694024895828,0.0197,25711.0,25710.0,5.39353838]
[1694024896041,0.0197,25711.0,25710.0,5.27888027]
[1694024896277,0.0197,25711.0,25710.0,5.21888027]
[1694024896509,0.0197,25711.0,25710.0,0.38664527]
[1694024896715,0.0197,25711.0,25707.0,0.025]
[1694024896716,0.797582,25711.0,25707.0,0.025]
[1694024896923,0.0297,25711.0,25710.0,0.025]
[1694024897130,0.0297,25711.0,25707.0,0.025]
[1694024897338,0.0297,25711.0,25706.0,0.778108]
[1694024897547,0.807578,25711.0,25710.0,0.025]
[1694024897755,0.967177,25711.0,25706.0,0.0001]
[1694024897965,0.01,25709.0,25707.0,0.025]
[1694024898183,0.01,25709.0,25707.0,0.777998]
[1694024898393,0.01,25710.0,25707.0,1.555996]
[1694024898605,0.1793,25711.0,25710.0,0.025]
[1694024898824,0.1893,25711.0,25710.0,0.025]
[1694024899043,0.1893,25711.0,25708.0,1.16459327]
[1694024899257,0.1893,25711.0,25706.0,0.0001]
[1694024899468,0.967184,25711.0,25707.0,0.025]
[1694024900000,0.01,25710.0,25707.0,2.09729638]
[1694024900209,0.01,25709.0,25707.0,2.72063627]
[1694024900422,0.1793,25711.0,25708.0,0.38664527]
[1694024900627,0.1793,25711.0,25708.0,1.94254327]
[1694024901017,0.1793,25711.0,25708.0,1.555898]
[1694024901225,0.01,25709.0,25707.0,0.777997]
[1694024901429,0.1793,25711.0,25707.0,1.94264027]
[1694024901665,0.1793,25711.0,25709.0,1.555874]
[1694024901863,0.1793,25711.0,25709.0,2.72045627]
[1694024903033,0.1793,25711.0,25710.0,0.38664527]
[1694024903232,0.0197,25711.0,25710.0,2.72036627]
[1694024903437,0.0197,25711.0,25710.0,1.96545927]
[1694024904068,0.0197,25711.0,25710.0,2.01545927]
[1694024904310,0.0197,25711.0,25710.0,3.36306627]
[1694024904512,0.0197,25711.0,25710.0,3.38806627]
[1694024904727,0.0197,25711.0,25710.0,0.48464527]
[1694024904938,0.0197,25711.0,25710.0,1.26255227]
[1694024905552,0.0197,25711.0,25710.0,0.43464527]
[1694024905763,0.0197,25711.0,25710.0,0.50964527]
[1694024905973,0.0197,25711.0,25710.0,2.06545927]
[1694024906182,0.0197,25711.0,25710.0,2.01545927]
[1694024906406,0.0197,25711.0,25710.0,0.075]
[1694024906667,0.0197,25711.0,25710.0,0.05]
[1694024906876,0.0197,25711.0,25710.0,0.025]
[1694024907088,0.0197,25711.0,25710.0,0.05]
[1694024907293,0.0197,25711.0,25710.0,0.025]
[1694024907498,0.797577,25711.0,25710.0,0.05]
[1694024907720,1.575454,25711.0,25710.0,0.025]
[1694024907945,0.0197,25711.0,25710.0,0.025]
[1694024908376,0.797577,25711.0,25706.0,0.0001]
[1694024908596,1.585454,25711.0,25710.0,0.03165414]
[1694024908827,0.0297,25711.0,25710.0,0.025]
[1694024909045,2.363331,25711.0,25710.0,0.05]
[1694024909280,2.363331,25711.0,25706.0,0.0001]
[1694024909483,0.01,25710.0,25706.0,0.0001]
[1694024909716,0.01,25710.0,25706.0,0.0501]
[1694024909717,0.777943,25709.0,25706.0,0.0501]
[1694024909925,1.555886,25709.0,25706.0,0.0501]
[1694024910132,0.78791,25710.0,25706.0,0.0251]
[1694024910133,0.01,25710.0,25706.0,0.0251]
[1694024910365,0.01,25709.0,25706.0,0.0251]
[1694024910588,0.787942,25709.0,25706.0,0.0251]
[1694024911717,0.01,25709.0,25706.0,0.0001]
[1694024912131,0.005,25709.0,25706.0,0.0251]
[1694024912373,0.005,25709.0,25706.0,0.0501]
[1694024912579,0.005,25709.0,25706.0,0.0251]
[1694024912759,0.005,25709.0,25706.0,0.0001]
[1694024912961,0.005,25709.0,25706.0,0.0251]
[1694024913207,0.005,25709.0,25706.0,0.0501]
[1694024914252,0.005,25707.0,25706.0,0.0501]
[1694024914458,1.782796,25707.0,25706.0,0.0501]
[1694024914669,3.47193087,25707.0,25706.0,0.0501]
[1694024914879,3.47193087,25707.0,25696.0,0.09328931]
[1694024914880,0.02,25705.0,25696.0,0.09328931]
[1694024915090,0.005,25702.0,25697.0,1.27797733]
[1694024915300,1.561318,25702.0,25697.0,0.155732]
[1694024915511,1.561318,25702.0,25696.0,1.19592249]
[1694024915512,1.716218,25702.0,25696.0,1.19592249]
[1694024915735,1.716218,25702.0,25696.0,1.97424349]
[1694024915943,1.716218,25702.0,25695.0,0.155796]
[1694024915944,0.005,25697.0,25695.0,0.155796]
[1694024916150,0.005,25697.0,25693.0,1.65019231]
[1694024916365,0.005,25697.0,25694.0,3.06581196]
[1694024916573,0.005,25697.0,25694.0,1.94342627]
[1694024917000,0.005,25697.0,25696.0,0.024]
[1694024917215,0.005,25697.0,25694.0,1.16503527]
[1694024918091,0.005,25697.0,25694.0,1.94342627]
[1694024918534,0.007,25697.0,25696.0,0.014]
[1694024918926,0.007,25697.0,25694.0,1.96742627]
[1694024919387,0.004,25697.0,25694.0,1.76043911]
[1694024919559,0.004,25697.0,25696.0,0.6247]
[1694024919766,0.004,25697.0,25696.0,4.79166702]
[1694024919991,0.004,25697.0,25696.0,5.64007802]
[1694024920417,0.004,25697.0,25696.0,5.63665802]
[1694024920560,0.004,25697.0,25696.0,5.63677802]
[1694024920763,0.004,25697.0,25696.0,5.56999802]
[1694024920959,0.004,25697.0,25696.0,0.72964527]
[1694024921347,0.004,25697.0,25696.0,0.38664527]
[1694024921483,0.783181,25701.0,25696.0,0.38664527]
[1694024921703,0.004,25697.0,25696.0,0.59030338]
[1694024921920,0.004,25697.0,25696.0,0.43564527]
[1694024922907,0.002,25697.0,25696.0,0.41064527]
[1694024923193,0.002,25697.0,25696.0,0.43264527]
[1694024923944,0.002,25697.0,25696.0,0.046]
[1694024924437,0.002,25697.0,25696.0,3.15353827]
[1694024924840,0.004,25697.0,25696.0,0.049]
[1694024925592,0.002,25697.0,25696.0,0.024]
[1694024926037,0.002,25697.0,25696.0,0.023]
[1694024926234,0.004,25697.0,25696.0,0.047]
[1694024927485,0.004,25697.0,25694.0,1.611755]
[1694024927486,0.002,25697.0,25694.0,0.055]
[1694024927686,0.005,25699.0,25694.0,0.44164527]
[1694024927891,0.004,25697.0,25696.0,0.049]
[1694024928309,0.002,25697.0,25696.0,0.024]
[1694024928516,0.007,25697.0,25696.0,0.024]
[1694024928732,0.009,25697.0,25696.0,0.024]
[1694024929148,0.007,25697.0,25696.0,0.024]
[1694024929565,0.007,25697.0,25696.0,0.049]
[1694024929566,1.9151711,25697.0,25696.0,0.049]
[1694024929751,3.18011637,25697.0,25696.0,0.049]
[1694024929959,3.55241637,25697.0,25696.0,0.049]
[1694024930168,3.57547637,25697.0,25696.0,0.049]
[1694024930382,3.57889637,25697.0,25696.0,0.049]
[1694024930585,0.065,25694.0,25693.0,0.0001]
[1694024930794,1.01344527,25694.0,25693.0,0.0001]
[1694024931014,4.3802538,25694.0,25693.0,0.0001]
[1694024931439,5.1586448,25694.0,25693.0,0.0001]
[1694024931645,0.02,25690.0,25684.0,1.12267507]
[1694024931902,0.02,25690.0,25682.0,1.12184331]
[1694024931903,1.557109,25689.0,25682.0,1.12184331]
[1694024932221,1.557109,25689.0,25681.0,1.9039403]
[1694024932222,1.557109,25689.0,25683.0,1.50937723]
[1694024932354,0.156,25688.0,25681.0,0.25311976]
[1694024932560,0.156,25688.0,25682.0,1.12279473]
[1694024932561,0.3178,25688.0,25682.0,1.12279473]
[1694024932755,1.874985,25688.0,25682.0,1.12279473]
[1694024933005,0.156,25688.0,25683.0,0.38664527]
[1694024933201,0.156,25688.0,25684.0,0.778694]
[1694024933402,0.156,25688.0,25683.0,1.94408127]
[1694024933603,0.156,25688.0,25683.0,0.778725]
[1694024933805,0.934578,25688.0,25682.0,0.09328931]
[1694024934004,0.934578,25688.0,25683.0,1.12273754]
[1694024934207,0.934578,25688.0,25683.0,1.14473754]
[1694024934416,0.934578,25688.0,25683.0,0.022]
[1694024934629,1.79706731,25688.0,25683.0,0.022]
[1694024934832,1.79506731,25688.0,25683.0,0.15465811]
[1694024935030,1.01848931,25688.0,25684.0,1.12274629]
[1694024935234,1.01848931,25688.0,25683.0,0.024]
[1694024935235,1.02048931,25688.0,25683.0,0.024]
[1694024935460,1.02048931,25688.0,25684.0,1.12272803]
[1694024935786,1.01848931,25688.0,25684.0,1.12272803]
[1694024936055,0.25756193,25687.0,25684.0,1.12272803]
[1694024936288,1.03616793,25687.0,25684.0,1.12272803]
[1694024936816,0.158,25688.0,25684.0,3.22141941]
[1694024937025,0.002,25688.0,25686.0,0.2168]
[1694024937237,0.004,25688.0,25687.0,3.0895793]
[1694024937431,0.002,25688.0,25687.0,3.8681823]
[1694024937914,0.1508,25693.0,25687.0,3.8681823]
[1694024938124,0.002,25688.0,25687.0,2.74545427]
[1694024938368,0.004,25688.0,25687.0,3.86808483]
[1694024938584,0.1508,25693.0,25687.0,4.40196483]
[1694024938794,0.005,25695.0,25690.0,0.04]
[1694024938998,0.005,25695.0,25691.0,2.09824238]
[1694024940068,0.005,25695.0,25691.0,2.87672438]
[1694024940483,0.005,25696.0,25692.0,1.12247338]
[1694024940683,0.005,25696.0,25693.0,2.72189327]
[1694024941028,0.005,25696.0,25693.0,1.94347727]
[1694024941435,0.002,25695.0,25693.0,1.16506127]
[1694024941659,0.004,25695.0,25693.0,1.16506127]
[1694024941907,0.002,25695.0,25691.0,0.04]
[1694024942111,0.002,25695.0,25693.0,0.011]
[1694024942112,0.778368,25695.0,25693.0,0.011]
[1694024942338,0.005,25694.0,25693.0,0.024]
[1694024942540,0.783391,25694.0,25693.0,0.011]
[1694024942901,0.005,25694.0,25693.0,0.011]
[1694024943282,0.005,25694.0,25693.0,0.033]
[1694024943486,2.72681827,25694.0,25693.0,0.033]
[1694024943711,2.82681827,25694.0,25693.0,0.022]
[1694024943907,2.82681827,25694.0,25693.0,0.042]
[1694024944304,2.82681827,25694.0,25693.0,0.022]
[1694024944539,2.82681827,25694.0,25688.0,0.004]
[1694024944540,0.04,25693.0,25688.0,0.004]
[1694024944812,1.556934,25692.0,25689.0,1.12266069]
[1694024945443,2.335401,25692.0,25689.0,1.12266069]
[1694024945655,2.335401,25692.0,25688.0,0.004]
[1694024946072,2.336401,25692.0,25689.0,0.013]
[1694024946558,0.001,25692.0,25689.0,0.55430338]
[1694024946808,0.001,25692.0,25690.0,1.12263557]
[1694024947053,0.001,25692.0,25691.0,0.778482]
[1694024947302,0.002,25692.0,25691.0,1.12263557]
[1694024947559,0.001,25692.0,25691.0,1.12263557]
[1694024947803,0.001,25692.0,25688.0,1.828214]
[1694024947804,0.778452,25692.0,25688.0,0.004]
[1694024948056,2.336356,25692.0,25689.0,1.50932139]
[1694024948309,0.005,25696.0,25690.0,3.53621512]
[1694024948527,0.002,25692.0,25691.0,1.6769795]
[1694024948747,0.001,25692.0,25691.0,4.02955539]
[1694024948958,0.005,25699.0,25694.0,0.04]
[1694024949177,0.005,25699.0,25695.0,4.9621635]
[1694024949402,0.005,25699.0,25696.0,1.12267612]
[1694024949612,0.005,25699.0,25697.0,1.96624527]
[1694024949843,0.005,25701.0,25697.0,2.89920338]
[1694024950055,0.005,25701.0,25698.0,0.15465811]
[1694024950268,0.005,25701.0,25699.0,1.55648]
[1694024950491,0.005,25701.0,25699.0,1.94312527]
[1694024950707,0.005,25701.0,25699.0,2.72136527]
[1694024950931,0.1664,25703.0,25699.0,2.72136527]
[1694024951175,0.005,25701.0,25699.0,2.87602338]
[1694024951388,0.009,25701.0,25699.0,2.74536527]
[1694024951603,0.007,25701.0,25699.0,2.74536527]
[1694024951815,0.007,25701.0,25699.0,2.74636527]
[1694024952038,0.007,25701.0,25699.0,1.96812527]
[1694024953143,0.007,25701.0,25699.0,1.99212527]
[1694024953561,0.007,25701.0,25699.0,1.96812527]
[1694024953999,0.009,25701.0,25699.0,1.99212527]
[1694024954225,0.009,25701.0,25699.0,2.77036527]
[1694024954656,0.004,25701.0,25699.0,2.77036527]
[1694024955106,0.009,25701.0,25699.0,2.77036527]
[1694024955530,0.004,25701.0,25700.0,0.4309]
[1694024955749,0.004,25701.0,25700.0,3.15217527]
[1694024956619,0.002,25701.0,25700.0,3.15217527]
[1694024957018,0.004,25701.0,25700.0,3.17617527]
[1694024957258,0.002,25701.0,25700.0,3.17617527]
[1694024957452,0.004,25701.0,25700.0,3.20117527]
[1694024961471,0.004,25701.0,25700.0,3.25617527]
[1694024961677,0.004,25701.0,25700.0,3.55617527]
[1694024963961,0.004,25701.0,25700.0,0.45864527]
[1694024964196,0.004,25701.0,25700.0,0.47864527]
[1694024964382,0.004,25701.0,25700.0,0.45864527]
[1694024967159,0.004,25701.0,25700.0,0.049]
[1694024972375,0.004,25701.0,25700.0,2.39996527]
[1694024972493,0.004,25701.0,25700.0,3.20117527]
[1694024972705,0.004,25701.0,25700.0,3.32259527]
[1694024972939,0.004,25701.0,25700.0,3.37747527]
[1694024973139,0.004,25701.0,25700.0,3.25617527]
[1694024973690,0.004,25701.0,25700.0,3.34247527]
[1694024973899,0.004,25701.0,25700.0,3.37747527]
[1694024975054,0.004,25701.0,25700.0,2.19136527]
[1694024975816,0.004,25701.0,25700.0,2.96957527]
[1694024976241,0.004,25701.0,25700.0,3.37747527]
[1694024976611,0.02881098,25701.0,25700.0,3.37747527]
[1694024977964,0.02881098,25701.0,25700.0,3.65213338]
[1694024978171,0.02881098,25701.0,25700.0,5.18838447]
[1694024978367,0.005,25710.0,25705.0,0.4629]
[1694024978572,0.005,25710.0,25709.0,0.1213]
[1694024978821,0.1666,25710.0,25709.0,2.21847738]
[1694024978985,0.1666,25710.0,25709.0,2.99641438]
[1694024979212,0.1666,25710.0,25709.0,2.84175627]
[1694024979413,0.1666,25710.0,25709.0,1.94251927]
[1694024979613,0.1666,25710.0,25709.0,0.38664527]
[1694024980312,0.1686,25710.0,25709.0,0.43664527]
[1694024980671,0.1686,25710.0,25709.0,1.21458227]
[1694024980872,0.1686,25710.0,25709.0,2.77045627]
[1694024981265,0.002,25710.0,25709.0,2.79345627]
[1694024981604,0.002,25710.0,25709.0,0.45964527]
[1694024982586,0.002,25710.0,25709.0,0.43664527]
[1694024985729,0.002,25710.0,25709.0,1.21458227]
[1694024986553,0.002,25710.0,25709.0,5.03154158]
[1694024986787,0.002,25710.0,25709.0,4.95972158]
[1694024986995,0.002,25710.0,25709.0,5.03026158]
[1694024987214,0.002,25710.0,25709.0,5.05782158]
[1694024987423,0.002,25710.0,25709.0,5.08170158]
[1694024987627,0.002,25710.0,25709.0,5.05508158]
[1694024987854,0.002,25710.0,25709.0,5.05628158]
[1694024988056,0.002,25710.0,25709.0,5.09489158]
[1694024988270,0.002,25710.0,25709.0,5.09465158]
[1694024988483,0.1585,25718.0,25713.0,0.4079]
[1694024988697,0.0247,25719.0,25714.0,2.89761638]
[1694024988915,0.1585,25718.0,25714.0,2.89761638]
[1694024989117,0.005,25717.0,25714.0,2.89761638]
[1694024989327,0.1585,25718.0,25714.0,2.74295827]
[1694024989537,0.1585,25718.0,25714.0,2.89761638]
[1694024989746,0.1635,25718.0,25714.0,2.89761638]
[1694024989954,0.1635,25718.0,25714.0,0.40964527]
[1694024990167,0.1635,25718.0,25714.0,0.43464527]
[1694024990354,0.1635,25718.0,25714.0,1.39311427]
[1694024990651,0.1635,25718.0,25714.0,2.14590027]
[1694024990891,0.1635,25718.0,25714.0,2.17090027]
[1694024991096,0.1635,25718.0,25714.0,2.94868627]
[1694024991542,0.1635,25718.0,25714.0,2.92368627]
[1694024991974,0.1635,25718.0,25714.0,2.94868627]
[1694024994081,0.1585,25718.0,25714.0,2.94868627]
[1694024994237,0.1635,25718.0,25714.0,2.94868627]
[1694024994841,0.1635,25718.0,25714.0,2.98040898]
[1694024996830,0.005,25716.0,25714.0,0.23740971]
[1694024997042,1.555512,25715.0,25714.0,0.05]
[1694024997248,2.499868,25715.0,25714.0,0.05]
[1694024998072,2.499868,25715.0,25714.0,0.025]
[1694024998509,2.499868,25715.0,25714.0,0.021]
[1694024998737,2.499868,25715.0,25714.0,0.046]
[1694024998738,1.722112,25715.0,25714.0,0.046]
[1694024998943,0.782756,25715.0,25710.0,1.555794]
[1694024999165,0.951356,25715.0,25714.0,0.001]
[1694024999380,0.955356,25715.0,25714.0,0.001]
[1694024999581,0.947356,25715.0,25710.0,1.555794]
[1694024999819,0.1696,25715.0,25712.0,0.777837]
[1694025000026,0.005,25713.0,25712.0,0.777837]
[1694025000244,0.005,25713.0,25712.0,0.800837]
[1694025000455,0.005,25713.0,25712.0,0.023]
[1694025000909,0.005,25713.0,25711.0,0.023]
[1694025001109,2.333448,25713.0,25707.0,0.98508131]
[1694025001313,2.338448,25713.0,25708.0,0.40964527]
[1694025001515,0.1646,25712.0,25710.0,0.012]
[1694025001743,1.720316,25712.0,25710.0,0.012]
[1694025001984,1.720316,25712.0,25708.0,0.02]
[1694025002190,1.720316,25712.0,25711.0,0.025]
[1694025002405,1.720316,25712.0,25707.0,1.20962827]
[1694025002607,1.720316,25712.0,25707.0,0.025]
[1694025002608,1.722534,25708.0,25707.0,0.025]
[1694025002810,2.500501,25708.0,25707.0,0.025]
[1694025003507,0.1666,25708.0,25707.0,0.025]
[1694025003737,0.005,25708.0,25707.0,0.025]
[1694025003932,0.782967,25708.0,25707.0,0.025]
[1694025004374,0.005,25708.0,25707.0,0.025]
[1694025004569,0.005,25708.0,25707.0,0.802998]
[1694025004776,0.005,25708.0,25707.0,1.580996]
[1694025004987,0.005,25711.0,25707.0,1.97664127]
[1694025005194,0.1583,25711.0,25708.0,0.38664527]
[1694025005401,0.1583,25711.0,25709.0,0.777937]
[1694025005797,0.1583,25711.0,25708.0,1.94254627]
[1694025006247,0.1623,25711.0,25708.0,1.94254627]
[1694025006659,0.3340966,25711.0,25707.0,0.001]
[1694025006874,0.005,25708.0,25707.0,0.001]
[1694025007085,1.560934,25708.0,25707.0,0.001]
[1694025007292,2.338901,25708.0,25707.0,0.001]
[1694025007507,2.72554627,25708.0,25700.0,0.03090298]
[1694025007723,2.72554627,25708.0,25696.0,0.2007]
[1694025007724,0.005,25702.0,25696.0,0.2007]
[1694025007934,1.561319,25702.0,25697.0,1.50887399]
[1694025008145,0.1638,25701.0,25697.0,0.38664527]
[1694025008353,0.941981,25701.0,25697.0,0.38664527]
[1694025008634,0.941981,25701.0,25700.0,0.001]
[1694025008847,1.8926752,25701.0,25700.0,0.001]
[1694025009053,2.8374562,25701.0,25700.0,0.001]
[1694025009278,0.005,25698.0,25697.0,0.017]
[1694025009491,0.78327,25698.0,25697.0,0.023]
[1694025009706,0.005,25698.0,25697.0,0.023]
[1694025010757,0.005,25698.0,25695.0,0.778356]
[1694025010966,0.005,25698.0,25695.0,1.556712]
[1694025011386,0.005,25698.0,25697.0,0.025]
[1694025011592,0.005,25698.0,25695.0,1.556712]
[1694025011804,0.006,25698.0,25697.0,0.025]
[1694025012017,0.001,25698.0,25697.0,2.3599]
[1694025012235,0.006,25698.0,25697.0,2.3599]
[1694025012436,0.005,25698.0,25697.0,2.3349]
[1694025012648,0.006,25698.0,25697.0,2.3349]
[1694025012857,0.006,25698.0,25697.0,1.5566]
[1694025013065,0.006,25698.0,25697.0,0.7783]
[1694025013515,0.006,25698.0,25697.0,1.5566]
[1694025013925,0.005,25698.0,25697.0,0.025]
[1694025014145,0.0289195,25698.0,25697.0,0.025]
[1694025014359,0.006,25698.0,25697.0,0.05]
[1694025014575,0.02980392,25698.0,25697.0,0.05]
[1694025015669,0.02480392,25698.0,25697.0,2.3849]
[1694025020111,0.02480392,25698.0,25697.0,1.6066]
[1694025020560,0.02480392,25698.0,25697.0,0.05]
[1694025020771,2.61451931,25698.0,25697.0,0.05]
[1694025021199,3.10116458,25698.0,25697.0,0.05]
[1694025021620,3.10016458,25698.0,25697.0,0.025]
[1694025021829,3.10016458,25698.0,25687.0,0.155843]
[1694025021830,0.08,25695.0,25687.0,0.155843]
[1694025022044,0.1616,25691.0,25685.0,1.557303]
[1694025022271,0.1616,25691.0,25685.0,1.557309]
[1694025022272,1.557035,25690.0,25685.0,1.557309]
[1694025022478,1.617035,25690.0,25685.0,0.778646]
[1694025022691,1.617035,25690.0,25685.0,1.55731]
[1694025022909,0.960051,25693.0,25686.0,0.38664527]
[1694025023126,0.02365895,25694.0,25688.0,2.33571]
[1694025023334,0.778425,25693.0,25688.0,0.15465811]
[1694025023544,2.493272,25693.0,25688.0,0.15465811]
[1694025023971,2.493272,25693.0,25688.0,1.71180311]
[1694025023972,1.714847,25693.0,25688.0,1.71180311]
[1694025024180,0.158,25693.0,25688.0,2.49037611]
[1694025024392,0.158,25693.0,25688.0,2.49137611]
[1694025024607,0.165,25693.0,25689.0,0.54130338]
[1694025024828,0.002,25693.0,25690.0,2.358518]
[1694025025037,0.003,25693.0,25691.0,0.38664527]
[1694025025241,0.003,25693.0,25692.0,2.335356]
[1694025025419,0.001,25693.0,25692.0,2.335356]
[1694025025624,0.001,25693.0,25692.0,1.556904]
[1694025026886,0.002,25693.0,25692.0,1.556904]
[1694025027299,0.001,25693.0,25692.0,1.556904]
[1694025027509,0.001,25693.0,25692.0,1.581904]
[1694025027922,0.002,25693.0,25692.0,1.606904]
[1694025029179,0.002,25693.0,25692.0,0.828452]
[1694025030445,0.002,25693.0,25692.0,0.05]
[1694025030446,0.780422,25693.0,25692.0,0.05]
[1694025030651,2.342266,25693.0,25692.0,0.05]
[1694025030877,2.6728586,25693.0,25692.0,0.05]
[1694025031714,3.22110387,25693.0,25692.0,0.05]
[1694025032173,1.725444,25693.0,25692.0,0.05]
[1694025032401,0.007,25693.0,25692.0,0.05]
[1694025033464,0.007,25693.0,25692.0,0.828452]
[1694025033465,0.02563112,25693.0,25692.0,0.828452]
[1694025033731,0.02963112,25693.0,25692.0,1.581904]
[1694025033943,0.03863112,25693.0,25692.0,1.557904]
[1694025034154,0.04963112,25693.0,25692.0,1.558904]
[1694025034584,0.03863112,25693.0,25692.0,1.557904]
[1694025034813,0.02863112,25693.0,25692.0,1.556904]
[1694025035035,0.03063112,25693.0,25692.0,1.587904]
[1694025035629,0.03063112,25693.0,25692.0,0.031]
[1694025036080,0.80905312,25693.0,25692.0,0.031]
[1694025036295,1.58747512,25693.0,25692.0,0.031]
[1694025036919,0.80905312,25693.0,25692.0,0.031]
[1694025037127,0.03063112,25693.0,25692.0,1.587904]
[1694025037339,0.03063112,25693.0,25692.0,2.366356]
[1694025037547,0.03063112,25693.0,25692.0,1.587904]
[1694025037753,0.03063112,25693.0,25692.0,0.031]
[1694025038185,0.80905312,25693.0,25692.0,0.031]
[1694025038600,2.36589712,25693.0,25692.0,0.031]
[1694025038828,2.52749712,25693.0,25692.0,0.031]
[1694025039244,0.03063112,25693.0,25692.0,0.031]
[1694025039457,0.80905312,25693.0,25692.0,0.031]
[1694025039659,1.58747512,25693.0,25692.0,0.031]
[1694025039871,0.03063112,25693.0,25692.0,0.031]
[1694025040303,0.80905312,25693.0,25692.0,0.031]
[1694025040945,0.03063112,25693.0,25692.0,1.587904]
[1694025041169,0.03063112,25693.0,25692.0,2.366356]
[1694025041381,0.03063112,25693.0,25692.0,0.031]
[1694025041588,0.03063112,25693.0,25692.0,0.809452]
[1694025041794,0.80905312,25693.0,25692.0,0.031]
[1694025042006,1.82405773,25693.0,25692.0,0.031]
[1694025042236,2.60247973,25693.0,25692.0,0.031]
[1694025044095,1.82405773,25693.0,25692.0,0.031]
[1694025044510,2.60247973,25693.0,25692.0,0.031]
[1694025046387,3.009125,25693.0,25692.0,0.031]
[1694025046774,2.989125,25693.0,25692.0,0.031]
[1694025048030,3.05017016,25693.0,25692.0,0.031]
[1694025048246,3.15017016,25693.0,25692.0,0.031]
[1694025048454,3.61721016,25693.0,25692.0,0.031]
[1694025048668,3.61439016,25693.0,25692.0,0.031]
[1694025048875,3.62735016,25693.0,25692.0,0.031]
[1694025049063,3.62669016,25693.0,25692.0,0.031]
[1694025049210,3.62495016,25693.0,25692.0,0.031]
[1694025049428,3.62207016,25693.0,25692.0,0.031]
[1694025049629,3.61571016,25693.0,25692.0,0.031]
[1694025049829,0.1,25691.0,25682.0,1.760987]
[1694025050029,0.1616,25687.0,25683.0,1.12291002]
[1694025050255,1.55728,25686.0,25683.0,1.12291002]
[1694025050405,2.33592,25686.0,25684.0,1.12291002]
[1694025050611,2.33592,25686.0,25685.0,1.12291002]
[1694025050826,2.33592,25686.0,25682.0,0.778744]
[1694025051020,2.33592,25686.0,25683.0,1.12293454]
[1694025051229,2.72256527,25686.0,25683.0,1.13693454]
[1694025051431,0.1616,25685.0,25683.0,0.014]
[1694025051639,0.778694,25684.0,25683.0,0.006]
[1694025051843,2.336082,25684.0,25683.0,0.006]
[1694025052260,2.72272727,25684.0,25683.0,0.006]
[1694025052499,3.10937254,25684.0,25683.0,0.006]
[1694025052669,3.10937254,25684.0,25681.0,0.01989699]
[1694025052871,3.10937254,25684.0,25682.0,0.016]
[1694025053076,0.1616,25683.0,25682.0,0.016]
[1694025053286,2.88442027,25683.0,25681.0,0.01989699]
[1694025053536,0.77329054,25682.0,25681.0,0.01989699]
[1694025053992,0.77329054,25682.0,25681.0,0.01978096]
[1694025053993,3.37011554,25682.0,25681.0,0.01978096]
[1694025054256,0.818755,25682.0,25681.0,0.01978096]
[1694025054503,1.59751,25682.0,25681.0,0.01978096]
[1694025054768,0.779711,25684.0,25681.0,0.56108434]
[1694025054769,0.001,25684.0,25681.0,0.56108434]
[1694025055061,0.001,25684.0,25681.0,1.73200907]
[1694025055554,0.009,25682.0,25681.0,1.57835096]
[1694025055970,0.009,25682.0,25681.0,1.59335096]
[1694025056180,0.009,25682.0,25681.0,2.37213596]
[1694025056381,0.009,25682.0,25681.0,2.35713596]
[1694025056590,0.009,25682.0,25681.0,2.74378123]
[1694025057279,0.778576,25688.0,25681.0,2.74278123]
[1694025057522,0.2498301,25687.0,25682.0,0.15465811]
[1694025057805,0.001,25684.0,25683.0,0.77871]
[1694025058044,1.0284361,25687.0,25683.0,0.77871]
[1694025058288,1.0284361,25687.0,25683.0,0.93336811]
[1694025058530,1.0284361,25687.0,25683.0,2.33616]
[1694025058531,0.2498301,25687.0,25683.0,2.33616]
[1694025058791,0.1665,25689.0,25683.0,2.49081811]
[1694025059032,0.001,25684.0,25683.0,2.36116]
[1694025059994,0.001,25684.0,25683.0,2.36316]
[1694025060397,0.001,25684.0,25683.0,2.36116]
[1694025060606,0.778576,25688.0,25683.0,1.557435]
[1694025060835,0.779632,25687.0,25686.0,0.155]
[1694025061044,1.558206,25687.0,25686.0,0.155]
[1694025061248,1.557206,25687.0,25684.0,0.115]
[1694025061448,1.557206,25687.0,25685.0,0.06]
[1694025061449,0.38664527,25686.0,25685.0,0.06]
[1694025061655,2.72254727,25686.0,25685.0,0.155]
[1694025062062,2.72254727,25686.0,25685.0,0.055]
[1694025062485,2.72254727,25686.0,25685.0,0.155]
[1694025063153,2.72254727,25686.0,25685.0,0.006]
[1694025063399,2.90664749,25686.0,25685.0,0.006]
[1694025063611,0.005,25684.0,25681.0,0.01978096]
[1694025063827,3.66314527,25683.0,25681.0,0.01978096]
[1694025064065,4.04979054,25683.0,25681.0,0.01978096]
[1694025064494,3.66314527,25683.0,25681.0,0.01978096]
[1694025064734,3.66814527,25683.0,25681.0,0.01978096]
[1694025065626,3.66814527,25683.0,25681.0,0.02178096]
[1694025065627,1.35930527,25682.0,25681.0,0.02178096]
[1694025065844,3.70121027,25682.0,25681.0,0.02178096]
[1694025066066,3.69875027,25682.0,25681.0,0.02178096]
[1694025066246,4.08647554,25682.0,25681.0,0.01978096]
[1694025066411,4.08785554,25682.0,25681.0,0.02178096]
[1694025066604,4.08329554,25682.0,25681.0,0.02378096]
[1694025066806,4.09135554,25682.0,25681.0,0.02378096]